Workbook

Sheet Rectangle
B1: Area of a Farmer's Pen Problem
B3: This DIGMath module lets you investigate
B4: the problem of finding the dimensions
B5: of the largest rectangular pen
B6: that a farmer can construct
B7: given the length of fencing to be used.
A11: What is the perimeter (length L of fencing)?
B12: (200 - 1000 feet) | E12: Length L = | F12: =10*D13+200 -> 680
D13: 48 | E13: =#REF!+D13*(#REF!-#REF!)/100 -> 
A15: The perimeter of the pen is L = 2x + 2y = | E15: =perim0 -> 680
A16: The formula for the area function A = | E16: ½x(L - 2x)
K27: Select the amount of L used for x is | O27: =IF(N29<=perim0/2,N29,perim0/2) -> 292 | P27: feet
N29: 292 | O29: =Calcs!E7+N29*(Calcs!E8-Calcs!E7)/100 -> 0
L31: So the associated value for y = | O31: =(perim0-2*x0)/2 -> 48
L33: The area of this pen is then A = | O33: =x0*(perim0-2*x0) -> 28032 | P33: square feet
L35: The value of the derivative is A' = | P35: =L/2-2*x0 -> -244
A37: Click each item below for suggestions and investigations
C38: Item 1
C39: Item 2
C40: Item 3
A44: To access/download all the DIGMath Apps for Calculus
A45: Click this link: | C45: DIGMath for Calculus
A47: Created by: Sheldon P. Gordon & Florence S. Gordon
A48: Farmingdale State College NYIT
A49: Development of this module was supported by the
A50: NSF's Division of Undergraduate Education
A51: under grants DUE-0310123 and DUE-0442160.

Sheet Existing wall
B1: Area of a Farmer's Pen Problem
B3: This DIGMath module lets you investigate
B4: the problem of finding the dimensions
B5: of the largest rectangular pen
B6: that a farmer can construct
B7: using an existing fence or wall or river
B8: given the length of fencing to be used.
A12: What is the perimeter (length L of fencing)?
B13: (200 - 1000 feet) | E13: Length L = | F13: =10*D14+200 -> 900
D14: 70 | E14: =#REF!+D14*(#REF!-#REF!)/100 -> 
A16: The perimeter of the pen is L = x + 2y = | E16: =perim0 -> 680
A17: The formula for the area function A = | E17: ½x(L - x)
I24: Select the amount of L used for x is | M24: =IF(L26<=perim1,L26,perim1) -> 522 | N24: feet
L26: 522 | M26: =Calcs!B7+L26*(Calcs!B8-Calcs!B7)/100 -> 0
J28: So the associated value for y = | M28: =(perim1-x00)/2 -> 189
J30: The area of this pen is then A = | M30: =x00*M28 -> 98658 | N30: square feet
J32: The value of the derivative is A' = | N32: =L/2-2*x00 -> -704
A40: Click each item below for suggestions and investigations
C41: Item 1
C42: Item 2
C43: Item 3
A46: To access/download all the DIGMath Apps for Calculus
A47: Click this link: | C47: DIGMath for Calculus
A49: Created by: Sheldon P. Gordon & Florence S. Gordon
A50: Farmingdale State College NYIT
A51: Development of this module was supported by the
A52: NSF's Division of Undergraduate Education
A53: under grants DUE-0310123 and DUE-0442160.

Sheet Two Pens
B1: Area of a Farmer's Pen Problem
B3: This DIGMath module lets you investigate
B4: the problem of finding the dimensions
B5: of two equal sized rectangular pens
B6: that a farmer can construct
B7: given the length of fencing to be used.
A11: What is the perimeter (length L of fencing)?
B12: (200 - 1000 feet) | E12: Length L = | F12: =10*D13+200 -> 850
D13: 65 | E13: =#REF!+D13*(#REF!-#REF!)/100 -> 
A15: The perimeter of the pen is L = 3x + 2y = | E15: =perim2 -> 850
A16: The formula for the area function A = | E16: ½x(L - 3x)
H25: Select the amount of L used for x is | L25: =IF(K27<=perim2/3,K27,perim2/3) -> 61 | M25: feet
K27: 61 | L27: =Calcs!B7+K27*(Calcs!B8-Calcs!B7)/100 -> 0
I29: So the associated value for y = | L29: =(LLL-3*x000)/2 -> 333.5
I31: The area of the two pens is A = | L31: =x000*(perim2-3*x000) -> 40687 | M31: square feet
I33: The value of the derivative is A' = | M33: =LLL/2-2*x000 -> 303
A37: Click each item below for suggestions and investigations
C38: Item 1
C39: Item 2
C40: Item 3
A43: To access/download all the DIGMath Apps for Calculus
A44: Click this link: | C44: DIGMath for Calculus
A46: Created by: Sheldon P. Gordon & Florence S. Gordon
A47: Farmingdale State College NYIT
A48: Development of this module was supported by the
A49: NSF's Division of Undergraduate Education
A50: under grants DUE-0310123 and DUE-0442160.

Sheet Three Pens
B1: Area of a Farmer's Pen Problem
B3: This DIGMath module lets you investigate
B4: the problem of finding the dimensions
B5: of three equal sized rectangular pens
B6: that a farmer can construct
B7: given the length of fencing to be used.
A11: What is the perimeter (length L of fencing)?
B12: (200 - 1000 feet) | E12: Length L = | F12: =10*D13+200 -> 860
D13: 66 | E13: =#REF!+D13*(#REF!-#REF!)/100 -> 
A15: The perimeter of the pen is L = 4x + 2y = | E15: =llll -> 860
A16: The formula for the area function A = | E16: ½x(L - 4x)
I27: Select the amount of L used for x is | M27: =IF(K29<=perim3/4,K29,perim3/4) -> 108 | N27: feet
K29: 108 | L29: 165 | M29: =Calcs!C7+L29*(Calcs!#REF!-Calcs!C7)/100 -> 
J31: So the associated value for y = | M31: =(llll-4*x0000)/2 -> 214
J33: The area of the three pens is A = | M33: =x0000*(perim3-4*x0000)/2 -> 23112 | N33: square feet
J35: The value of the derivative is A' = | N35: =llll/2-4*x0000 -> -2
A37: Click each item below for suggestions and investigations
C38: Item 1
C39: Item 2
C40: Item 3
C41: Item 4
A45: To access/download all the DIGMath Apps for Calculus
A46: Click this link: | C46: DIGMath for Calculus
A48: Created by: Sheldon P. Gordon & Florence S. Gordon
A49: Farmingdale State College NYIT
A50: Development of this module was supported by the
A51: NSF's Division of Undergraduate Education
A52: under grants DUE-0310123 and DUE-0442160.

Sheet Calcs
A1: 1 Rectangle
A3: Three points
A4: 0 | B4: 0 | C4: =L/2-2*A4 -> 340
A5: =perim0/4 -> 170 | B5: =A5*(perim0-2*A5)/2 -> 28900 | C5: =L/2-2*A5 -> 0
A6: =perim0/2 -> 340 | B6: 0 | C6: =L/2-2*A6 -> -340
A8: Point on curve | C8: A'
A9: =x0 -> 292 | B9: 0 | C9: 0
A10: =x0 -> 292 | B10: =A9*(perim0-2*A9)/2 -> 14016 | C10: =L/2-2*x0 -> -244
A13: 2 Existing Fence
A15: Three points
A16: 0 | B16: 0 | C16: =LL/2-A16 -> 450
A17: =perim1/2 -> 450 | B17: =A17*(perim1-A17)/2 -> 101250 | C17: =LL/2-A17 -> 0
A18: =perim1 -> 900 | B18: 0 | C18: =LL/2-A18 -> -450
A20: Point on curve | C20: A'
A21: =x00 -> 522 | B21: 0 | C21: 0
A22: =x00 -> 522 | B22: =A21*(perim1-A21)/2 -> 98658 | C22: =LL/2-A22 -> -72
A25: 3. Two Pens
A27: Three points
A28: 0 | B28: 0 | C28: =LLL/2-3*A28 -> 425
A29: =perim2/6 -> 141.6666667 | B29: =A29*(perim2-3*A29)/2 -> 30104.16667 | C29: =LLL/2-3*A29 -> 0
A30: =perim2/3 -> 283.3333333 | B30: 0 | C30: =LLL/2-3*A30 -> -425
A32: Point on curve | C32: A'
A33: =x000 -> 61 | B33: 0 | C33: 0
A34: =x000 -> 61 | B34: =A33*(perim2-3*A33)/2 -> 20343.5 | C34: =LLL/2-3*A34 -> 242
A37: 4. Three Pens
A39: Three points
A40: 0 | B40: 0 | C40: =llll/2-4*A40 -> 430
A41: =perim3/8 -> 107.5 | B41: =A41*(perim3 - 4*A41)/2 -> 23112.5 | C41: =llll/2-4*A41 -> 0
A42: =perim3/4 -> 215 | B42: 0 | C42: =llll/2-4*A42 -> -430
A44: Point on curve | C44: A'
A45: =x0000 -> 108 | B45: 0 | C45: 0
A46: =x0000 -> 108 | B46: =A45*(perim3-4*A45)/2 -> 23112 | C46: =llll/2-4*A46 -> -2
